[Event "Late-Titled-Tuesday-Blitz-November-28-2023"]
[Site "Chess.com"]
[Date "2023.11.28"]
[Round "4"]
[White "egnfanclub"]
[Black "karinachess1"]
[Result "0-1"]
[WhiteElo "2348"]
[BlackElo "2604"]
[TimeControl "180+1"]
[EndTime "14:37:44 PST"]
[Termination "karinachess1 won by resignation"]

1. e4 {[%clk 0:03:00.9]} 1... e5 {[%clk 0:03:00.1]} 2. Nf3 {[%clk 0:03:00.6]}
2... Nc6 {[%clk 0:03:00.2]} 3. d4 {[%clk 0:02:59.9]} 3... exd4 {[%clk
0:03:00.3]} 4. Bc4 {[%clk 0:03:00.2]} 4... Nf6 {[%clk 0:02:58.6]} 5. O-O {[%clk
0:03:00.4]} 5... Nxe4 {[%clk 0:02:57.6]} 6. Nc3 {[%clk 0:02:59.4]} 6... Nxc3
{[%clk 0:02:52.2]} 7. bxc3 {[%clk 0:02:58.8]} 7... d5 {[%clk 0:02:52.7]} 8. Bb5
{[%clk 0:02:58.4]} 8... Be7 {[%clk 0:02:43.3]} 9. cxd4 {[%clk 0:02:44]} 9... O-O
{[%clk 0:02:43]} 10. Re1 {[%clk 0:02:41.7]} 10... Bg4 {[%clk 0:02:41.9]} 11. c3
{[%clk 0:02:41.2]} 11... Bd6 {[%clk 0:02:37]} 12. h3 {[%clk 0:02:41.2]} 12...
Bh5 {[%clk 0:02:36.9]} 13. Bxc6 {[%clk 0:02:11.1]} 13... bxc6 {[%clk 0:02:36.9]}
14. Qd3 {[%clk 0:02:11.7]} 14... c5 {[%clk 0:02:34.5]} 15. Ne5 {[%clk
0:01:58.2]} 15... cxd4 {[%clk 0:02:29.7]} 16. cxd4 {[%clk 0:01:57.9]} 16... Bg6
{[%clk 0:02:02.9]} 17. Nxg6 {[%clk 0:01:57]} 17... fxg6 {[%clk 0:01:59.7]} 18.
Be3 {[%clk 0:01:52.8]} 18... Qf6 {[%clk 0:01:54.5]} 19. Rac1 {[%clk 0:01:46.8]}
19... a5 {[%clk 0:01:53.2]} 20. Qb5 {[%clk 0:01:45.6]} 20... Qf7 {[%clk
0:01:51.3]} 21. Re2 {[%clk 0:01:36.2]} 21... a4 {[%clk 0:01:49.8]} 22. Rec2
{[%clk 0:01:09.1]} 22... h6 {[%clk 0:01:43.4]} 23. Qd3 {[%clk 0:01:02.9]} 23...
g5 {[%clk 0:01:39]} 24. Rf1 {[%clk 0:00:50]} 24... Qe6 {[%clk 0:01:30.7]} 25.
Re2 {[%clk 0:00:39.8]} 25... Qf7 {[%clk 0:01:30.4]} 26. f3 {[%clk 0:00:39.7]}
26... a3 {[%clk 0:01:26.4]} 27. Rfe1 {[%clk 0:00:39.3]} 27... Rfb8 {[%clk
0:01:23.3]} 28. Bc1 {[%clk 0:00:38.1]} 28... Bb4 {[%clk 0:01:06.5]} 29. Rf1
{[%clk 0:00:37]} 29... c5 {[%clk 0:01:00.2]} 30. f4 {[%clk 0:00:37.3]} 30... c4
{[%clk 0:00:56.2]} 31. Qf3 {[%clk 0:00:37.4]} 31... gxf4 {[%clk 0:00:53.6]} 32.
Bxf4 {[%clk 0:00:36.6]} 32... Re8 {[%clk 0:00:53.3]} 33. Be5 {[%clk 0:00:31.4]}
33... Qxf3 {[%clk 0:00:50.4]} 34. Rxf3 {[%clk 0:00:32.3]} 34... Bd6 {[%clk
0:00:37.8]} 35. Rfe3 {[%clk 0:00:28.7]} 35... Bxe5 {[%clk 0:00:21.1]} 36. Rxe5
{[%clk 0:00:29.6]} 36... Rxe5 {[%clk 0:00:19.9]} 37. Rxe5 {[%clk 0:00:29.8]}
37... c3 {[%clk 0:00:15.5]} 38. Re2 {[%clk 0:00:29.3]} 38... Rc8 {[%clk
0:00:13.3]} 39. Rc2 {[%clk 0:00:29.8]} 39... Kf7 {[%clk 0:00:13.5]} 40. Kf2
{[%clk 0:00:30.4]} 40... Ke6 {[%clk 0:00:09.6]} 41. Ke3 {[%clk 0:00:31.3]} 41...
Kf5 {[%clk 0:00:10.2]} 42. g3 {[%clk 0:00:30.8]} 42... h5 {[%clk 0:00:10.1]} 43.
Rf2+ {[%clk 0:00:29.6]} 43... Kg5 {[%clk 0:00:08.9]} 44. Kd3 {[%clk 0:00:30.2]}
44... h4 {[%clk 0:00:08.4]} 45. g4 {[%clk 0:00:27.8]} 45... Rc4 {[%clk
0:00:03.7]} 46. Rf5+ {[%clk 0:00:24.5]} 46... Kg6 {[%clk 0:00:04.1]} 47. Kc2
{[%clk 0:00:24.7]} 47... Rxd4 {[%clk 0:00:04.2]} 48. Kxc3 {[%clk 0:00:24.2]}
48... Rd1 {[%clk 0:00:04.2]} 49. Kb3 {[%clk 0:00:23.6]} 49... Rd3+ {[%clk
0:00:04.1]} 50. Kb4 {[%clk 0:00:23.7]} 50... d4 {[%clk 0:00:03.9]} 51. Ra5
{[%clk 0:00:19.6]} 51... Rxh3 {[%clk 0:00:04]} 52. Rxa3 {[%clk 0:00:20.5]} 52...
Rxa3 {[%clk 0:00:04.1]} 53. Kxa3 {[%clk 0:00:21.4]} 53... h3 {[%clk 0:00:04.8]}
0-1

[Event "Late-Titled-Tuesday-Blitz-November-28-2023"]
[Site "Chess.com"]
[Date "2023.11.28"]
[Round "4"]
[White "TrenerChos"]
[Black "Hirna2005"]
[Result "1-0"]
[WhiteElo "2604"]
[BlackElo "2345"]
[TimeControl "180+1"]
[EndTime "14:38:02 PST"]
[Termination "TrenerChos won on time"]

1. d4 {[%clk 0:03:00.9]} 1... g6 {[%clk 0:03:00.2]} 2. Nf3 {[%clk 0:03:00.9]}
2... Bg7 {[%clk 0:03:00.8]} 3. e3 {[%clk 0:03:00.7]} 3... d6 {[%clk 0:03:01.4]}
4. b3 {[%clk 0:03:00.4]} 4... Nf6 {[%clk 0:02:59.6]} 5. Bb2 {[%clk 0:03:00.3]}
5... O-O {[%clk 0:02:59.5]} 6. Nbd2 {[%clk 0:03:00.7]} 6... b6 {[%clk
0:02:59.8]} 7. Bd3 {[%clk 0:03:00.6]} 7... Bb7 {[%clk 0:02:59.7]} 8. O-O {[%clk
0:03:00.8]} 8... Nbd7 {[%clk 0:02:59.6]} 9. e4 {[%clk 0:03:00.4]} 9... e5 {[%clk
0:02:59.1]} 10. dxe5 {[%clk 0:02:59.9]} 10... Ng4 {[%clk 0:02:52.5]} 11. Be2
{[%clk 0:02:51.8]} 11... Ngxe5 {[%clk 0:02:51.7]} 12. Nd4 {[%clk 0:02:50]} 12...
Re8 {[%clk 0:02:14.7]} 13. Re1 {[%clk 0:02:45.1]} 13... Qh4 {[%clk 0:02:03.1]}
14. N2f3 {[%clk 0:02:31.7]} 14... Nxf3+ {[%clk 0:01:58]} 15. Nxf3 {[%clk
0:02:32.6]} 15... Qxe4 {[%clk 0:01:54.9]} 16. Bxg7 {[%clk 0:02:30.8]} 16... Kxg7
{[%clk 0:01:54.5]} 17. Bb5 {[%clk 0:02:28.9]} 17... Qg4 {[%clk 0:01:42.3]} 18.
Bxd7 {[%clk 0:01:52.8]} 18... Rxe1+ {[%clk 0:01:25.7]} 19. Qxe1 {[%clk
0:01:51.3]} 19... Qxd7 {[%clk 0:01:25.3]} 20. Qc3+ {[%clk 0:01:51]} 20... f6
{[%clk 0:01:23.9]} 21. Nd4 {[%clk 0:01:49.9]} 21... Re8 {[%clk 0:01:21]} 22. Qd2
{[%clk 0:01:45.7]} 22... c5 {[%clk 0:01:16.2]} 23. Ne2 {[%clk 0:01:44.5]} 23...
Qc6 {[%clk 0:01:01.3]} 24. f3 {[%clk 0:01:36.9]} 24... d5 {[%clk 0:01:01.4]} 25.
c3 {[%clk 0:01:36.5]} 25... Qe6 {[%clk 0:00:58.5]} 26. Kf2 {[%clk 0:01:35]}
26... Qe5 {[%clk 0:00:55.3]} 27. h3 {[%clk 0:01:31.3]} 27... f5 {[%clk 0:00:52]}
28. Nf4 {[%clk 0:01:21.1]} 28... Re7 {[%clk 0:00:28.4]} 29. Ne2 {[%clk
0:01:16.4]} 29... h6 {[%clk 0:00:26.6]} 30. Rd1 {[%clk 0:01:14.5]} 30... g5
{[%clk 0:00:25.8]} 31. Ng3 {[%clk 0:01:12.2]} 31... f4 {[%clk 0:00:20.6]} 32.
Ne2 {[%clk 0:00:58.9]} 32... Ba6 {[%clk 0:00:19.6]} 33. Nc1 {[%clk 0:00:53.1]}
33... Qe3+ {[%clk 0:00:19.3]} 34. Qxe3 {[%clk 0:00:52.7]} 34... fxe3+ {[%clk
0:00:19.5]} 35. Ke1 {[%clk 0:00:51]} 35... Re5 {[%clk 0:00:16.5]} 36. a3 {[%clk
0:00:43.8]} 36... Kf6 {[%clk 0:00:14.7]} 37. b4 {[%clk 0:00:42.2]} 37... Bc4
{[%clk 0:00:12.1]} 38. Nd3 {[%clk 0:00:41.5]} 38... Re6 {[%clk 0:00:09.3]} 39.
bxc5 {[%clk 0:00:38.8]} 39... bxc5 {[%clk 0:00:09.1]} 40. Nxc5 {[%clk
0:00:36.8]} 40... Rb6 {[%clk 0:00:09.3]} 41. Nd7+ {[%clk 0:00:36.8]} 41... Ke6
{[%clk 0:00:07.5]} 42. Nxb6 {[%clk 0:00:37.7]} 42... axb6 {[%clk 0:00:07.8]} 43.
Rb1 {[%clk 0:00:37.7]} 43... b5 {[%clk 0:00:08.2]} 44. Rd1 {[%clk 0:00:34.4]}
44... Ke5 {[%clk 0:00:08.1]} 45. Rd4 {[%clk 0:00:33.9]} 45... Kf5 {[%clk
0:00:07.2]} 46. h4 {[%clk 0:00:33.7]} 46... Ke5 {[%clk 0:00:04.7]} 47. g3 {[%clk
0:00:31.8]} 47... Kf5 {[%clk 0:00:04.9]} 48. hxg5 {[%clk 0:00:26.8]} 48... hxg5
{[%clk 0:00:04.8]} 49. Rd1 {[%clk 0:00:18.9]} 49... Ke5 {[%clk 0:00:05.2]} 50.
Ra1 {[%clk 0:00:17.3]} 50... Kf5 {[%clk 0:00:05.3]} 51. a4 {[%clk 0:00:16.9]}
51... bxa4 {[%clk 0:00:05.4]} 52. Rxa4 {[%clk 0:00:17.8]} 52... Ke5 {[%clk
0:00:05.9]} 53. Ra8 {[%clk 0:00:17.2]} 53... d4 {[%clk 0:00:04.4]} 54. Re8+
{[%clk 0:00:16.1]} 54... Be6 {[%clk 0:00:04.1]} 55. cxd4+ {[%clk 0:00:15.8]}
55... Kd5 {[%clk 0:00:04.6]} 56. Ke2 {[%clk 0:00:15.6]} 56... Bd7 {[%clk
0:00:04.8]} 57. Rd8 {[%clk 0:00:15.3]} 57... Kd6 {[%clk 0:00:04.5]} 58. Kxe3
{[%clk 0:00:15.4]} 58... Ke7 {[%clk 0:00:04.8]} 59. Rxd7+ {[%clk 0:00:15.7]}
59... Kxd7 {[%clk 0:00:05.3]} 60. Ke4 {[%clk 0:00:16.4]} 1-0

[Event "Late-Titled-Tuesday-Blitz-November-28-2023"]
[Site "Chess.com"]
[Date "2023.11.28"]
[Round "4"]
[White "DuleMudule"]
[Black "Oleksandr_Bortnyk"]
[Result "0-1"]
[WhiteElo "2859"]
[BlackElo "3052"]
[TimeControl "180+1"]
[EndTime "14:38:14 PST"]
[Termination "Oleksandr_Bortnyk won by checkmate"]

1. d4 {[%clk 0:03:00.9]} 1... Nf6 {[%clk 0:02:59.1]} 2. Bg5 {[%clk 0:02:59.2]}
2... g6 {[%clk 0:02:52]} 3. Bxf6 {[%clk 0:02:58.6]} 3... exf6 {[%clk 0:02:52.9]}
4. e3 {[%clk 0:02:59.1]} 4... c6 {[%clk 0:02:51.9]} 5. c4 {[%clk 0:02:59.3]}
5... Qb6 {[%clk 0:02:50.1]} 6. Qd2 {[%clk 0:02:57.8]} 6... a5 {[%clk 0:02:42.9]}
7. Nc3 {[%clk 0:02:57]} 7... a4 {[%clk 0:02:43.3]} 8. a3 {[%clk 0:02:47.3]} 8...
d6 {[%clk 0:02:37.9]} 9. Bd3 {[%clk 0:02:43.9]} 9... Be7 {[%clk 0:02:30.4]} 10.
Nge2 {[%clk 0:02:43.1]} 10... O-O {[%clk 0:02:30.1]} 11. O-O {[%clk 0:02:43.2]}
11... f5 {[%clk 0:02:29.8]} 12. Bc2 {[%clk 0:02:40]} 12... Qa6 {[%clk
0:02:21.9]} 13. Nxa4 {[%clk 0:02:28.2]} 13... Be6 {[%clk 0:02:05.8]} 14. b3
{[%clk 0:02:23.6]} 14... b5 {[%clk 0:02:04.4]} 15. cxb5 {[%clk 0:02:18.5]} 15...
Qxb5 {[%clk 0:02:05.3]} 16. Nac3 {[%clk 0:02:17.3]} 16... Qb6 {[%clk 0:02:03]}
17. d5 {[%clk 0:02:08.6]} 17... cxd5 {[%clk 0:02:00.7]} 18. Nxd5 {[%clk
0:02:05.2]} 18... Bxd5 {[%clk 0:01:59.9]} 19. Qxd5 {[%clk 0:02:06.1]} 19... Nd7
{[%clk 0:01:51.5]} 20. b4 {[%clk 0:02:02.6]} 20... Nf6 {[%clk 0:01:46]} 21. Qd3
{[%clk 0:02:00]} 21... Rfc8 {[%clk 0:01:33.5]} 22. Bb3 {[%clk 0:01:57.9]} 22...
Ng4 {[%clk 0:01:28.5]} 23. Nf4 {[%clk 0:01:51.8]} 23... Bf6 {[%clk 0:01:26.2]}
24. Nd5 {[%clk 0:01:45.9]} 24... Qd8 {[%clk 0:01:26.3]} 25. Nxf6+ {[%clk
0:01:44]} 25... Qxf6 {[%clk 0:01:25.6]} 26. Qd5 {[%clk 0:01:33.9]} 26... Ra7
{[%clk 0:01:13.5]} 27. h3 {[%clk 0:01:33]} 27... Ne5 {[%clk 0:01:01.1]} 28. Rfd1
{[%clk 0:01:30.7]} 28... Rc3 {[%clk 0:00:56.3]} 29. a4 {[%clk 0:01:25]} 29...
Nd3 {[%clk 0:00:47]} 30. Rab1 {[%clk 0:01:00.2]} 30... Nxb4 {[%clk 0:00:43.5]}
31. Qb5 {[%clk 0:00:50]} 31... Nc6 {[%clk 0:00:26.9]} 32. Bd5 {[%clk 0:00:47.4]}
32... Ra5 {[%clk 0:00:25.2]} 33. Qb6 {[%clk 0:00:47.1]} 33... Rac5 {[%clk
0:00:23.5]} 34. Bxc6 {[%clk 0:00:30.3]} 34... Rxc6 {[%clk 0:00:24.4]} 35. Qb4
{[%clk 0:00:30.6]} 35... R3c4 {[%clk 0:00:21.3]} 36. Qb5 {[%clk 0:00:29.6]}
36... f4 {[%clk 0:00:18.5]} 37. exf4 {[%clk 0:00:27.7]} 37... Qxf4 {[%clk
0:00:18.1]} 38. a5 {[%clk 0:00:26.8]} 38... R4c5 {[%clk 0:00:17.5]} 39. Qb8+
{[%clk 0:00:24.2]} 39... Kg7 {[%clk 0:00:17.8]} 40. Ra1 {[%clk 0:00:19.3]} 40...
Ra6 {[%clk 0:00:10.2]} 41. Qb2+ {[%clk 0:00:15.4]} 41... Qe5 {[%clk 0:00:10.3]}
42. Qb4 {[%clk 0:00:12.5]} 42... h5 {[%clk 0:00:05.1]} 43. Ra4 {[%clk
0:00:10.8]} 43... Raxa5 {[%clk 0:00:04.9]} 44. Rxa5 {[%clk 0:00:10.9]} 44...
Rxa5 {[%clk 0:00:05.8]} 45. Qxd6 {[%clk 0:00:11.4]} 45... Qf5 {[%clk 0:00:02.7]}
46. Qd4+ {[%clk 0:00:11.1]} 46... Kh7 {[%clk 0:00:03.2]} 47. Qe3 {[%clk
0:00:10.8]} 47... Re5 {[%clk 0:00:03.3]} 48. Qg3 {[%clk 0:00:10.3]} 48... Re2
{[%clk 0:00:03.4]} 49. h4 {[%clk 0:00:10.3]} 49... Re4 {[%clk 0:00:03.4]} 50.
Rd3 {[%clk 0:00:07.7]} 50... Re1+ {[%clk 0:00:02.7]} 51. Kh2 {[%clk 0:00:07.3]}
51... Qe6 {[%clk 0:00:02.1]} 52. Rf3 {[%clk 0:00:07.1]} 52... Qc4 {[%clk
0:00:02.3]} 53. Qg5 {[%clk 0:00:05.4]} 53... Kg8 {[%clk 0:00:01.8]} 54. Qf6
{[%clk 0:00:05.4]} 54... Qd5 {[%clk 0:00:01.5]} 55. Qf4 {[%clk 0:00:04.7]} 55...
Qe6 {[%clk 0:00:01.6]} 56. Rg3 {[%clk 0:00:04.1]} 56... Qe2 {[%clk 0:00:01.2]}
57. Rf3 {[%clk 0:00:03.5]} 57... Qe6 {[%clk 0:00:01.9]} 58. Qg3 {[%clk
0:00:03.6]} 58... Qd7 {[%clk 0:00:02.1]} 59. Qh3 {[%clk 0:00:04.5]} 59... Qd1
{[%clk 0:00:02.2]} 60. Qg3 {[%clk 0:00:05]} 60... Rh1# {[%clk 0:00:02.4]} 0-1

[Event "Late-Titled-Tuesday-Blitz-November-28-2023"]
[Site "Chess.com"]
[Date "2023.11.28"]
[Round "4"]
[White "mr_gustavo"]
[Black "Haykoooo0o"]
[Result "0-1"]
[WhiteElo "2621"]
[BlackElo "2434"]
[TimeControl "180+1"]
[EndTime "14:38:15 PST"]
[Termination "Haykoooo0o won by resignation"]

1. d4 {[%clk 0:03:00.9]} 1... d5 {[%clk 0:02:59.3]} 2. Bf4 {[%clk 0:03:01.2]}
2... Nf6 {[%clk 0:02:57.4]} 3. Nf3 {[%clk 0:03:00.3]} 3... c5 {[%clk 0:02:57.6]}
4. e3 {[%clk 0:03:00.8]} 4... cxd4 {[%clk 0:02:57.2]} 5. exd4 {[%clk 0:03:01.1]}
5... Nc6 {[%clk 0:02:57.8]} 6. c3 {[%clk 0:03:01.4]} 6... Bg4 {[%clk 0:02:53.8]}
7. Nbd2 {[%clk 0:03:01.1]} 7... e6 {[%clk 0:02:54]} 8. Bd3 {[%clk 0:03:00.7]}
8... Bd6 {[%clk 0:02:53.6]} 9. Bxd6 {[%clk 0:03:00.5]} 9... Qxd6 {[%clk
0:02:54.5]} 10. h3 {[%clk 0:03:00.3]} 10... Bh5 {[%clk 0:02:54.4]} 11. O-O
{[%clk 0:03:00.8]} 11... O-O {[%clk 0:02:54.5]} 12. Re1 {[%clk 0:02:59.9]} 12...
Qc7 {[%clk 0:02:53.9]} 13. Qc2 {[%clk 0:02:55.2]} 13... Rfc8 {[%clk 0:02:50.5]}
14. Rac1 {[%clk 0:02:53.4]} 14... a6 {[%clk 0:02:48.7]} 15. Ne5 {[%clk
0:02:52.8]} 15... Bg6 {[%clk 0:02:42.7]} 16. Bxg6 {[%clk 0:02:51.2]} 16... hxg6
{[%clk 0:02:42.8]} 17. Qd3 {[%clk 0:02:48.8]} 17... Nxe5 {[%clk 0:02:42.2]} 18.
Rxe5 {[%clk 0:02:47.9]} 18... b5 {[%clk 0:02:42.1]} 19. h4 {[%clk 0:02:27.1]}
19... b4 {[%clk 0:02:38]} 20. c4 {[%clk 0:02:24.8]} 20... dxc4 {[%clk
0:02:38.1]} 21. Rxc4 {[%clk 0:02:24.2]} 21... Qb7 {[%clk 0:02:34.4]} 22. Rec5
{[%clk 0:02:20.8]} 22... Nd5 {[%clk 0:02:31.6]} 23. Ne4 {[%clk 0:02:08.2]} 23...
Rd8 {[%clk 0:02:16.1]} 24. Qf3 {[%clk 0:01:59.8]} 24... Rab8 {[%clk 0:02:08.6]}
25. Ng5 {[%clk 0:00:35.1]} 25... Nf6 {[%clk 0:01:49.6]} 26. Qxb7 {[%clk
0:00:27.8]} 26... Rxb7 {[%clk 0:01:49]} 27. Rc7 {[%clk 0:00:28.7]} 27... Rb5
{[%clk 0:00:53.5]} 28. Nxf7 {[%clk 0:00:26.2]} 28... Rf8 {[%clk 0:00:51.1]} 29.
Ng5 {[%clk 0:00:24.9]} 29... Nd5 {[%clk 0:00:48]} 30. Ra7 {[%clk 0:00:18.8]}
30... Rb6 {[%clk 0:00:39.7]} 31. Nf3 {[%clk 0:00:15]} 31... b3 {[%clk
0:00:36.7]} 32. axb3 {[%clk 0:00:14.3]} 32... Rxb3 {[%clk 0:00:35.5]} 33. Ne5
{[%clk 0:00:14.5]} 33... Rxb2 {[%clk 0:00:34.1]} 34. Nf3 {[%clk 0:00:05.8]}
34... Ra2 {[%clk 0:00:29]} 35. Rc6 {[%clk 0:00:05.6]} 35... a5 {[%clk
0:00:23.5]} 36. Rd6 {[%clk 0:00:05.1]} 36... Nf6 {[%clk 0:00:19.1]} 37. Rxe6
{[%clk 0:00:04.7]} 37... Ng4 {[%clk 0:00:19]} 38. Ree7 {[%clk 0:00:04.5]} 38...
Ra1+ {[%clk 0:00:18.9]} 39. Ne1 {[%clk 0:00:05]} 39... Rf7 {[%clk 0:00:16]} 40.
Re8+ {[%clk 0:00:04]} 40... Kh7 {[%clk 0:00:15]} 41. Re4 {[%clk 0:00:04.3]}
41... Rxa7 {[%clk 0:00:14.2]} 42. f3 {[%clk 0:00:03.4]} 42... Nf6 {[%clk
0:00:13]} 43. Re6 {[%clk 0:00:02.9]} 43... Rb7 {[%clk 0:00:09.9]} 44. Kh2 {[%clk
0:00:02.5]} 44... Ra2 {[%clk 0:00:09.4]} 45. Nd3 {[%clk 0:00:02.7]} 45... Rd2
{[%clk 0:00:08.5]} 46. Nf4 {[%clk 0:00:03]} 46... Rxd4 {[%clk 0:00:05.8]} 47.
Kg3 {[%clk 0:00:03.7]} 47... Rxf4 {[%clk 0:00:05.2]} 48. Kxf4 {[%clk 0:00:04]}
48... Ra7 {[%clk 0:00:05.9]} 49. Re3 {[%clk 0:00:03.4]} 49... a4 {[%clk
0:00:06]} 50. Ra3 {[%clk 0:00:04.1]} 50... Nd5+ {[%clk 0:00:04.4]} 51. Ke5
{[%clk 0:00:04.8]} 51... Nc7 {[%clk 0:00:04.8]} 52. Ra1 {[%clk 0:00:03.6]} 52...
a3 {[%clk 0:00:04.6]} 53. Kd6 {[%clk 0:00:04.1]} 53... a2 {[%clk 0:00:04.5]} 54.
Kc6 {[%clk 0:00:04]} 54... Ne6 {[%clk 0:00:04.2]} 55. Kb6 {[%clk 0:00:04.5]}
55... Ra8 {[%clk 0:00:04.4]} 56. Kb5 {[%clk 0:00:04.3]} 56... Nd4+ {[%clk
0:00:03.9]} 57. Kc4 {[%clk 0:00:05]} 57... Nc2 {[%clk 0:00:04.2]} 58. Rxa2
{[%clk 0:00:05.9]} 58... Rxa2 {[%clk 0:00:04.3]} 59. Kb3 {[%clk 0:00:06.8]}
59... Ra5 {[%clk 0:00:03.4]} 60. Kxc2 {[%clk 0:00:07.7]} 60... Kh6 {[%clk
0:00:03.8]} 61. Kd3 {[%clk 0:00:08.6]} 61... Kh5 {[%clk 0:00:04.2]} 62. Ke3
{[%clk 0:00:09.5]} 62... Kxh4 {[%clk 0:00:04.4]} 0-1

[Event "Late-Titled-Tuesday-Blitz-November-28-2023"]
[Site "Chess.com"]
[Date "2023.11.28"]
[Round "4"]
[White "Grischuk"]
[Black "CSB7"]
[Result "1-0"]
[WhiteElo "3083"]
[BlackElo "2701"]
[TimeControl "180+1"]
[EndTime "14:38:19 PST"]
[Termination "Grischuk won by resignation"]

1. d4 {[%clk 0:03:00.9]} 1... Nf6 {[%clk 0:02:58.7]} 2. c4 {[%clk 0:03:00.9]}
2... e6 {[%clk 0:02:58.9]} 3. Bg5 {[%clk 0:03:00.6]} 3... d5 {[%clk 0:02:49.5]}
4. e3 {[%clk 0:03:00.3]} 4... h6 {[%clk 0:02:45.8]} 5. Bh4 {[%clk 0:03:00.3]}
5... Be7 {[%clk 0:02:43.6]} 6. Nc3 {[%clk 0:02:59.2]} 6... O-O {[%clk
0:02:42.1]} 7. Qc2 {[%clk 0:02:59.5]} 7... Nbd7 {[%clk 0:02:35]} 8. cxd5 {[%clk
0:02:59.3]} 8... exd5 {[%clk 0:02:33.2]} 9. Bd3 {[%clk 0:02:59.1]} 9... c6
{[%clk 0:02:31.3]} 10. Nf3 {[%clk 0:02:58.9]} 10... Nh5 {[%clk 0:02:27.1]} 11.
Bxe7 {[%clk 0:02:57.3]} 11... Qxe7 {[%clk 0:02:28]} 12. O-O {[%clk 0:02:56.9]}
12... Re8 {[%clk 0:02:15.7]} 13. Rab1 {[%clk 0:02:54.7]} 13... a5 {[%clk
0:02:15.2]} 14. Rfe1 {[%clk 0:02:52]} 14... Nhf6 {[%clk 0:02:07]} 15. Nd2 {[%clk
0:02:50]} 15... Nf8 {[%clk 0:01:59.1]} 16. h3 {[%clk 0:02:46.3]} 16... Qd6
{[%clk 0:01:55]} 17. a3 {[%clk 0:02:43.1]} 17... Ne6 {[%clk 0:01:38.5]} 18. Nf3
{[%clk 0:02:38.6]} 18... Bd7 {[%clk 0:01:18.8]} 19. Ne5 {[%clk 0:02:36.8]} 19...
Rec8 {[%clk 0:01:16.8]} 20. Bf5 {[%clk 0:01:59.3]} 20... Nf8 {[%clk 0:01:09.2]}
21. Bd3 {[%clk 0:01:53.4]} 21... Ne6 {[%clk 0:00:57.1]} 22. Red1 {[%clk
0:01:38.2]} 22... Be8 {[%clk 0:00:51.4]} 23. Bf5 {[%clk 0:01:31.4]} 23... c5
{[%clk 0:00:46.3]} 24. Nf3 {[%clk 0:01:31]} 24... c4 {[%clk 0:00:41.7]} 25. a4
{[%clk 0:01:31.4]} 25... Ra6 {[%clk 0:00:35.4]} 26. Ne5 {[%clk 0:01:20.9]} 26...
Rb6 {[%clk 0:00:32.3]} 27. Qe2 {[%clk 0:01:18.1]} 27... Rb4 {[%clk 0:00:30]} 28.
Bc2 {[%clk 0:01:14.5]} 28... Rb8 {[%clk 0:00:27.6]} 29. e4 {[%clk 0:01:04.5]}
29... dxe4 {[%clk 0:00:23.3]} 30. Nxe4 {[%clk 0:01:02]} 30... Nxe4 {[%clk
0:00:22.7]} 31. Qxe4 {[%clk 0:01:01.5]} 31... Nf8 {[%clk 0:00:23.3]} 32. Qe2
{[%clk 0:00:39.7]} 32... Bxa4 {[%clk 0:00:20.7]} 33. Bxa4 {[%clk 0:00:38.6]}
33... Rxa4 {[%clk 0:00:21.6]} 34. Nxc4 {[%clk 0:00:37.8]} 34... Qc7 {[%clk
0:00:18.6]} 35. Ne3 {[%clk 0:00:36.2]} 35... Rd8 {[%clk 0:00:16.2]} 36. Rbc1
{[%clk 0:00:34.6]} 36... Qb6 {[%clk 0:00:14.9]} 37. d5 {[%clk 0:00:30.3]} 37...
Rb4 {[%clk 0:00:13.9]} 38. Rc2 {[%clk 0:00:29.7]} 38... a4 {[%clk 0:00:13.1]}
39. Rcd2 {[%clk 0:00:27]} 39... Qd6 {[%clk 0:00:10.2]} 40. Qd3 {[%clk
0:00:17.9]} 40... g6 {[%clk 0:00:08.4]} 41. Qc3 {[%clk 0:00:11.1]} 41... Rb3
{[%clk 0:00:07.8]} 42. Qa5 {[%clk 0:00:09.3]} 42... b5 {[%clk 0:00:05.1]} 43.
Rc2 {[%clk 0:00:09.5]} 43... Rd7 {[%clk 0:00:04.5]} 44. Qa8 {[%clk 0:00:08.1]}
44... Rd8 {[%clk 0:00:04]} 45. Qa5 {[%clk 0:00:07.5]} 45... Rd7 {[%clk
0:00:04.2]} 46. Rdd2 {[%clk 0:00:06.9]} 46... Qb4 {[%clk 0:00:03.5]} 47. Qa8
{[%clk 0:00:06]} 47... Qe7 {[%clk 0:00:03.1]} 48. Rc6 {[%clk 0:00:03.4]} 48...
Kg7 {[%clk 0:00:03]} 49. d6 {[%clk 0:00:03.7]} 49... Qf6 {[%clk 0:00:03.2]} 50.
Qe8 {[%clk 0:00:01.7]} 50... Rd8 {[%clk 0:00:02.2]} 51. Qe7 {[%clk 0:00:01.6]}
51... Rd7 {[%clk 0:00:02.7]} 52. Qe8 {[%clk 0:00:01.7]} 52... Rd8 {[%clk
0:00:02.5]} 53. Qe7 {[%clk 0:00:02.1]} 53... Rd7 {[%clk 0:00:03.1]} 54. Qxf6+
{[%clk 0:00:02.5]} 54... Kxf6 {[%clk 0:00:04]} 55. Ng4+ {[%clk 0:00:02.8]} 55...
Ke6 {[%clk 0:00:01.8]} 56. Rb6 {[%clk 0:00:02.6]} 56... Rd8 {[%clk 0:00:01.7]}
57. Nxh6 {[%clk 0:00:02.6]} 57... Nd7 {[%clk 0:00:02.2]} 58. Re2+ {[%clk
0:00:02.4]} 58... Kd5 {[%clk 0:00:02.4]} 59. Rb7 {[%clk 0:00:02.4]} 59... Kxd6
{[%clk 0:00:02.5]} 60. Nxf7+ {[%clk 0:00:02.1]} 60... Kc6 {[%clk 0:00:03]} 61.
Nxd8+ {[%clk 0:00:03]} 1-0